[Event "Late-Titled-Tuesday-Blitz-June-04-2024"]
[Site "Chess.com"]
[Date "2024.06.04"]
[Round "2"]
[White "NMJeevanK"]
[Black "MaxLeto"]
[Result "1-0"]
[WhiteElo "2733"]
[BlackElo "2443"]
[TimeControl "180+1"]
[EndTime "14:18:04 PDT"]
[Termination "NMJeevanK won on time"]

1. e4 {[%clk 0:03:00.9]} 1... c5 {[%clk 0:02:59.5]} 2. Nf3 {[%clk 0:03:00.8]}
2... d6 {[%clk 0:02:45.9]} 3. b3 {[%clk 0:03:00.8]} 3... Nf6 {[%clk 0:02:45.6]}
4. d3 {[%clk 0:02:57.6]} 4... g6 {[%clk 0:02:44]} 5. Bb2 {[%clk 0:02:58.1]} 5...
Bg7 {[%clk 0:02:44]} 6. Nbd2 {[%clk 0:02:58.7]} 6... Nc6 {[%clk 0:02:40.6]} 7.
Rb1 {[%clk 0:02:58.9]} 7... O-O {[%clk 0:02:28.7]} 8. Be2 {[%clk 0:02:59.3]}
8... b5 {[%clk 0:02:24.8]} 9. O-O {[%clk 0:02:57.2]} 9... e5 {[%clk 0:02:03.9]}
10. c3 {[%clk 0:02:54.5]} 10... b4 {[%clk 0:01:58.1]} 11. Nc4 {[%clk 0:02:51.8]}
11... a5 {[%clk 0:01:53.3]} 12. Re1 {[%clk 0:02:49.5]} 12... h6 {[%clk
0:01:42.7]} 13. Bf1 {[%clk 0:02:49.3]} 13... Be6 {[%clk 0:01:36.6]} 14. h3
{[%clk 0:02:44]} 14... Qc7 {[%clk 0:01:31.2]} 15. Rc1 {[%clk 0:02:40.9]} 15...
Rfb8 {[%clk 0:01:27.7]} 16. Ba1 {[%clk 0:02:39.4]} 16... bxc3 {[%clk 0:01:15.6]}
17. Bxc3 {[%clk 0:02:38.2]} 17... Ne8 {[%clk 0:01:01.5]} 18. Ne3 {[%clk
0:02:28.1]} 18... Qa7 {[%clk 0:00:49.4]} 19. Qd2 {[%clk 0:02:27.1]} 19... a4
{[%clk 0:00:48.2]} 20. bxa4 {[%clk 0:02:06.3]} 20... Qxa4 {[%clk 0:00:49.1]} 21.
Rc2 {[%clk 0:02:06.7]} 21... Nc7 {[%clk 0:00:38]} 22. Nc4 {[%clk 0:02:06.7]}
22... Nb5 {[%clk 0:00:34.9]} 23. Rec1 {[%clk 0:01:54.2]} 23... Bf8 {[%clk
0:00:26.6]} 24. Ba1 {[%clk 0:01:46.4]} 24... Nb4 {[%clk 0:00:23.6]} 25. Rb2
{[%clk 0:01:45]} 25... Nxa2 {[%clk 0:00:22.9]} 26. Rcb1 {[%clk 0:01:43.5]} 26...
Nb4 {[%clk 0:00:21.9]} 27. Be2 {[%clk 0:01:39.6]} 27... Nd4 {[%clk 0:00:11.6]}
28. Nxd4 {[%clk 0:01:39.3]} 28... exd4 {[%clk 0:00:12.5]} 29. Bd1 {[%clk
0:01:38.5]} 29... Qa6 {[%clk 0:00:10.7]} 30. Bb3 {[%clk 0:01:38.9]} 30... Bg7
{[%clk 0:00:08]} 31. f4 {[%clk 0:01:32]} 31... Qc6 {[%clk 0:00:05]} 32. g4
{[%clk 0:01:31.6]} 32... Bc8 {[%clk 0:00:01.9]} 33. f5 {[%clk 0:01:30]} 33... g5
{[%clk 0:00:01.5]} 34. Rf1 {[%clk 0:01:17.8]} 34... Ba6 {[%clk 0:00:01.8]} 35.
Rbb1 {[%clk 0:01:16.5]} 35... Bf6 {[%clk 0:00:02]} 36. h4 {[%clk 0:01:15.2]}
36... Bxc4 {[%clk 0:00:02.2]} 37. Bxc4 {[%clk 0:01:15.3]} 37... Kg7 {[%clk
0:00:02.6]} 38. Qh2 {[%clk 0:01:13.4]} 38... Be5 {[%clk 0:00:02.3]} 39. Qd2
{[%clk 0:01:13.2]} 39... f6 {[%clk 0:00:02.6]} 40. Bb2 {[%clk 0:01:09.1]} 40...
Ra7 {[%clk 0:00:01.6]} 41. Bc1 {[%clk 0:01:09.3]} 41... Rba8 {[%clk 0:00:01.6]}
42. hxg5 {[%clk 0:01:09.7]} 42... hxg5 {[%clk 0:00:02.4]} 43. Qg2 {[%clk
0:01:06.2]} 43... Rh8 {[%clk 0:00:02.6]} 44. Rf2 {[%clk 0:00:54.6]} 44... Raa8
{[%clk 0:00:02.9]} 45. Qf3 {[%clk 0:00:49.8]} 45... Rh4 {[%clk 0:00:02.8]} 46.
Kf1 {[%clk 0:00:45.5]} 46... Rah8 {[%clk 0:00:03.1]} 47. Ke2 {[%clk 0:00:46.1]}
47... Rh3 {[%clk 0:00:03.3]} 48. Qg2 {[%clk 0:00:44.9]} 48... Qa4 {[%clk
0:00:03.2]} 49. Bd2 {[%clk 0:00:44.6]} 49... Qc2 {[%clk 0:00:02.9]} 50. Rc1
{[%clk 0:00:41.4]} 50... Qb2 {[%clk 0:00:01.1]} 51. Qf1 {[%clk 0:00:26.5]} 51...
Kf8 {[%clk 0:00:01.5]} 52. Qd1 {[%clk 0:00:26.7]} 52... Kg7 {[%clk 0:00:02]} 53.
Qa4 {[%clk 0:00:26.7]} 53... Re3+ {[%clk 0:00:02.1]} 54. Kf1 {[%clk 0:00:25.6]}
54... Rh1+ {[%clk 0:00:02.4]} 55. Kg2 {[%clk 0:00:24.5]} 55... Rxc1 {[%clk
0:00:02.3]} 56. Qd7+ {[%clk 0:00:23.7]} 56... Kh6 {[%clk 0:00:01.9]} 57. Bxe3
{[%clk 0:00:18.9]} 1-0

[Event "Late-Titled-Tuesday-Blitz-June-04-2024"]
[Site "Chess.com"]
[Date "2024.06.04"]
[Round "2"]
[White "gabduschew"]
[Black "Artyom_ChessMate"]
[Result "0-1"]
[WhiteElo "2322"]
[BlackElo "2538"]
[TimeControl "180+1"]
[EndTime "14:18:04 PDT"]
[Termination "Artyom_ChessMate won on time"]

1. e4 {[%clk 0:01:12.5]} 1... c5 {[%clk 0:02:56.7]} 2. Nf3 {[%clk 0:01:12.5]}
2... d6 {[%clk 0:02:56.9]} 3. d4 {[%clk 0:01:13.4]} 3... cxd4 {[%clk 0:02:57.6]}
4. Nxd4 {[%clk 0:01:14.2]} 4... Nf6 {[%clk 0:02:58.3]} 5. Bd3 {[%clk 0:01:14.4]}
5... g6 {[%clk 0:02:58.2]} 6. c4 {[%clk 0:01:14.8]} 6... Bg7 {[%clk 0:02:58.6]}
7. Nc2 {[%clk 0:01:15.2]} 7... O-O {[%clk 0:02:59.2]} 8. Nc3 {[%clk 0:01:15.9]}
8... Nc6 {[%clk 0:02:59.7]} 9. O-O {[%clk 0:01:16.3]} 9... b6 {[%clk 0:03:00.2]}
10. Rb1 {[%clk 0:01:16.1]} 10... Bb7 {[%clk 0:03:00.7]} 11. Qe2 {[%clk
0:01:16.6]} 11... Rc8 {[%clk 0:03:00.9]} 12. b3 {[%clk 0:01:16.9]} 12... Ne5
{[%clk 0:03:01.3]} 13. Bb2 {[%clk 0:01:16.8]} 13... Nxd3 {[%clk 0:03:01.5]} 14.
Qxd3 {[%clk 0:01:17.7]} 14... Qd7 {[%clk 0:03:01.2]} 15. Nd5 {[%clk 0:01:17.4]}
15... Nxd5 {[%clk 0:03:00.3]} 16. exd5 {[%clk 0:01:18.3]} 16... b5 {[%clk
0:02:57.6]} 17. Bxg7 {[%clk 0:01:18]} 17... Kxg7 {[%clk 0:02:58.5]} 18. Nd4
{[%clk 0:01:11.4]} 18... a6 {[%clk 0:02:53.4]} 19. Rfe1 {[%clk 0:01:09.1]} 19...
Rfe8 {[%clk 0:02:51.4]} 20. h4 {[%clk 0:01:00.1]} 20... h5 {[%clk 0:02:49.6]}
21. Nf3 {[%clk 0:00:50.1]} 21... Qg4 {[%clk 0:02:29.1]} 22. Re4 {[%clk
0:00:29.3]} 22... Qf5 {[%clk 0:02:26]} 23. Rbe1 {[%clk 0:00:28]} 23... bxc4
{[%clk 0:02:25]} 24. bxc4 {[%clk 0:00:28.9]} 24... Rc7 {[%clk 0:02:24.1]} 25.
Qd4+ {[%clk 0:00:22.5]} 25... Qf6 {[%clk 0:02:21.9]} 26. Qxf6+ {[%clk
0:00:19.9]} 26... Kxf6 {[%clk 0:02:22.8]} 27. Ng5 {[%clk 0:00:19.2]} 27... e5
{[%clk 0:01:30.4]} 28. f4 {[%clk 0:00:11.4]} 28... Rec8 {[%clk 0:01:03.4]} 29.
fxe5+ {[%clk 0:00:10.6]} 29... dxe5 {[%clk 0:01:04.3]} 30. Rxe5 {[%clk
0:00:10.6]} 30... Rxc4 {[%clk 0:01:03.2]} 31. Re7 {[%clk 0:00:11.1]} 31... Bxd5
{[%clk 0:00:56.3]} 32. Rd7 {[%clk 0:00:10.2]} 32... Rc1 {[%clk 0:00:52.5]} 33.
Rf1+ {[%clk 0:00:07.6]} 33... Rxf1+ {[%clk 0:00:51.6]} 34. Kxf1 {[%clk
0:00:08.5]} 34... Rc1+ {[%clk 0:00:50.8]} 35. Kf2 {[%clk 0:00:07.8]} 35... Rc2+
{[%clk 0:00:51.2]} 36. Ke3 {[%clk 0:00:07.2]} 36... Be6 {[%clk 0:00:51.4]} 37.
Rd2 {[%clk 0:00:06.8]} 37... Rxd2 {[%clk 0:00:50.8]} 38. Kxd2 {[%clk 0:00:07.7]}
38... Bxa2 {[%clk 0:00:51.3]} 39. Kc3 {[%clk 0:00:07.7]} 39... Bd5 {[%clk
0:00:51]} 40. Kb4 {[%clk 0:00:08]} 40... Bxg2 {[%clk 0:00:50.4]} 41. Ka5 {[%clk
0:00:08.2]} 41... Bf1 {[%clk 0:00:49.9]} 42. Kb4 {[%clk 0:00:05.9]} 42... Bb5
{[%clk 0:00:44]} 43. Kc5 {[%clk 0:00:06]} 43... Be8 {[%clk 0:00:42.4]} 44. Kb6
{[%clk 0:00:05.6]} 44... Kf5 {[%clk 0:00:41.8]} 45. Kxa6 {[%clk 0:00:05.1]}
45... Kg4 {[%clk 0:00:41.1]} 46. Ne4 {[%clk 0:00:03.7]} 46... Kxh4 {[%clk
0:00:40.9]} 47. Nf6 {[%clk 0:00:04.6]} 47... Bc6 {[%clk 0:00:39.1]} 48. Kb6
{[%clk 0:00:05.5]} 48... Bf3 {[%clk 0:00:39]} 49. Kc5 {[%clk 0:00:05.5]} 49...
g5 {[%clk 0:00:39.6]} 50. Kd4 {[%clk 0:00:05.8]} 50... g4 {[%clk 0:00:40.1]} 51.
Ke3 {[%clk 0:00:06]} 51... Kg5 {[%clk 0:00:39.8]} 52. Nh7+ {[%clk 0:00:04.3]}
52... Kg6 {[%clk 0:00:35.5]} 53. Nf8+ {[%clk 0:00:04.4]} 53... Kf5 {[%clk
0:00:35.9]} 54. Nd7 {[%clk 0:00:03.2]} 54... h4 {[%clk 0:00:35.7]} 55. Kf2
{[%clk 0:00:03.4]} 55... Kf4 {[%clk 0:00:35.5]} 56. Nc5 {[%clk 0:00:03]} 56...
g3+ {[%clk 0:00:34.2]} 57. Kf1 {[%clk 0:00:03.2]} 57... h3 {[%clk 0:00:34.4]}
58. Nd3+ {[%clk 0:00:01.5]} 58... Ke3 {[%clk 0:00:34.7]} 59. Ne1 {[%clk
0:00:01]} 59... h2 {[%clk 0:00:33.5]} 60. Nxf3 {[%clk 0:00:01.3]} 60... Kxf3
{[%clk 0:00:34.4]} 0-1

[Event "Late-Titled-Tuesday-Blitz-June-04-2024"]
[Site "Chess.com"]
[Date "2024.06.04"]
[Round "2"]
[White "The_Straightforward_Rook"]
[Black "sokidze"]
[Result "1-0"]
[WhiteElo "2555"]
[BlackElo "2795"]
[TimeControl "180+1"]
[EndTime "14:18:08 PDT"]
[Termination "The_Straightforward_Rook won by resignation"]

1. d4 {[%clk 0:02:53.9]} 1... d5 {[%clk 0:02:59.9]} 2. Nf3 {[%clk 0:02:53.8]}
2... Nf6 {[%clk 0:03:00.1]} 3. c4 {[%clk 0:02:54.3]} 3... e6 {[%clk 0:03:00.6]}
4. cxd5 {[%clk 0:02:52.1]} 4... exd5 {[%clk 0:03:00.6]} 5. Nc3 {[%clk 0:02:53]}
5... c6 {[%clk 0:03:01.1]} 6. Qc2 {[%clk 0:02:52.1]} 6... g6 {[%clk 0:02:59.5]}
7. Bg5 {[%clk 0:02:51.4]} 7... Be7 {[%clk 0:02:55]} 8. e3 {[%clk 0:02:51.1]}
8... Bf5 {[%clk 0:02:54.8]} 9. Bd3 {[%clk 0:02:51.7]} 9... Bxd3 {[%clk 0:02:55]}
10. Qxd3 {[%clk 0:02:52.6]} 10... Nbd7 {[%clk 0:02:51.9]} 11. Bh6 {[%clk
0:02:52.4]} 11... Ng4 {[%clk 0:02:37.9]} 12. Bf4 {[%clk 0:02:52.2]} 12... O-O
{[%clk 0:02:37.7]} 13. h3 {[%clk 0:02:51.3]} 13... Ngf6 {[%clk 0:02:37.7]} 14.
O-O {[%clk 0:02:51.8]} 14... Re8 {[%clk 0:02:36.6]} 15. Qc2 {[%clk 0:02:52.3]}
15... Nf8 {[%clk 0:02:33.7]} 16. a3 {[%clk 0:02:52]} 16... a5 {[%clk 0:02:33.9]}
17. Ne5 {[%clk 0:02:52.2]} 17... Ne6 {[%clk 0:02:33.7]} 18. Bh2 {[%clk
0:02:52.3]} 18... Bd6 {[%clk 0:02:12.2]} 19. Rad1 {[%clk 0:02:52.2]} 19... Qc7
{[%clk 0:02:04.5]} 20. f4 {[%clk 0:02:50.3]} 20... Ng7 {[%clk 0:01:57.1]} 21. g4
{[%clk 0:02:33]} 21... Nd7 {[%clk 0:01:56.6]} 22. Nxd5 {[%clk 0:02:25.4]} 22...
cxd5 {[%clk 0:01:56.8]} 23. Qxc7 {[%clk 0:02:25.5]} 23... Bxc7 {[%clk
0:01:57.3]} 24. Nxd7 {[%clk 0:02:25.8]} 24... Kh8 {[%clk 0:01:47.5]} 25. Rc1
{[%clk 0:02:21.6]} 25... Bd6 {[%clk 0:01:44.6]} 26. Ne5 {[%clk 0:02:19.8]} 26...
Kg8 {[%clk 0:01:42.8]} 27. Rc3 {[%clk 0:02:16]} 27... f6 {[%clk 0:01:41.7]} 28.
Nd7 {[%clk 0:02:14.9]} 28... Kf7 {[%clk 0:01:18.5]} 29. Nb6 {[%clk 0:02:14.9]}
29... Rad8 {[%clk 0:01:18.5]} 30. Nxd5 {[%clk 0:02:11.6]} 30... f5 {[%clk
0:01:18.4]} 31. Nb6 {[%clk 0:02:02.3]} 31... Ne6 {[%clk 0:00:41]} 32. Kf2 {[%clk
0:01:56.1]} 32... Nc7 {[%clk 0:00:34.6]} 33. Rfc1 {[%clk 0:01:53.4]} 33... Re7
{[%clk 0:00:35.1]} 34. Nc4 {[%clk 0:01:48]} 34... Nd5 {[%clk 0:00:35.3]} 35. Rb3
{[%clk 0:01:43]} 35... Nf6 {[%clk 0:00:30.9]} 36. Nd2 {[%clk 0:01:35.3]} 36...
Rde8 {[%clk 0:00:29.2]} 37. g5 {[%clk 0:01:33.5]} 37... Nd5 {[%clk 0:00:27.5]}
38. Nc4 {[%clk 0:01:33.3]} 38... Bb8 {[%clk 0:00:18.9]} 39. Bg1 {[%clk
0:01:31.3]} 39... h6 {[%clk 0:00:15.2]} 40. gxh6 {[%clk 0:01:22.7]} 40... Rh8
{[%clk 0:00:08.2]} 41. Ne5+ {[%clk 0:01:22.6]} 41... Bxe5 {[%clk 0:00:05.8]} 42.
dxe5 {[%clk 0:01:23.5]} 42... Rxh6 {[%clk 0:00:06.1]} 43. Rb5 {[%clk 0:01:21.5]}
43... Ke6 {[%clk 0:00:05.5]} 44. Rd1 {[%clk 0:01:03.4]} 44... Rd7 {[%clk
0:00:04.7]} 45. Kg3 {[%clk 0:00:59.8]} 45... Rh5 {[%clk 0:00:02.1]} 46. h4
{[%clk 0:00:54.6]} 46... Rhh7 {[%clk 0:00:02.1]} 47. Bf2 {[%clk 0:00:54]} 47...
Rh8 {[%clk 0:00:02.1]} 48. Rxa5 {[%clk 0:00:52.3]} 48... Rc8 {[%clk 0:00:02.3]}
49. Kf3 {[%clk 0:00:47.9]} 49... Rc2 {[%clk 0:00:02.2]} 50. Rb5 {[%clk
0:00:44.8]} 50... Rc4 {[%clk 0:00:02.3]} 51. Rg1 {[%clk 0:00:41.2]} 51... Kf7
{[%clk 0:00:02.2]} 52. e6+ {[%clk 0:00:40.2]} 52... Kxe6 {[%clk 0:00:02.7]} 53.
Rxg6+ {[%clk 0:00:40.6]} 53... Kf7 {[%clk 0:00:03.2]} 54. h5 {[%clk 0:00:38.7]}
54... Ne7 {[%clk 0:00:03.2]} 55. Rgb6 {[%clk 0:00:36.6]} 55... Rc2 {[%clk
0:00:03.4]} 56. Rxb7 {[%clk 0:00:34.8]} 56... Rxb7 {[%clk 0:00:01.5]} 57. Rxb7
{[%clk 0:00:34.9]} 57... Ke6 {[%clk 0:00:02.4]} 58. h6 {[%clk 0:00:33.7]} 58...
Ng6 {[%clk 0:00:01.9]} 59. h7 {[%clk 0:00:32.2]} 59... Rc8 {[%clk 0:00:02.6]}
60. Rg7 {[%clk 0:00:28.3]} 60... Kf6 {[%clk 0:00:02.7]} 61. Rg8 {[%clk
0:00:27.4]} 1-0

[Event "Late-Titled-Tuesday-Blitz-June-04-2024"]
[Site "Chess.com"]
[Date "2024.06.04"]
[Round "2"]
[White "Umumba_FM"]
[Black "Kapitan_Bayan"]
[Result "1/2-1/2"]
[WhiteElo "2586"]
[BlackElo "2358"]
[TimeControl "180+1"]
[EndTime "14:18:13 PDT"]
[Termination "Game drawn by stalemate"]

1. d4 {[%clk 0:02:59.4]} 1... d5 {[%clk 0:03:00.1]} 2. Nc3 {[%clk 0:02:59.2]}
2... Nf6 {[%clk 0:03:00]} 3. Bf4 {[%clk 0:02:59.5]} 3... c5 {[%clk 0:02:59.9]}
4. e3 {[%clk 0:02:49.6]} 4... cxd4 {[%clk 0:02:59.9]} 5. exd4 {[%clk 0:02:50.5]}
5... Bg4 {[%clk 0:02:59.8]} 6. Nf3 {[%clk 0:02:45.9]} 6... Nc6 {[%clk
0:02:59.2]} 7. Be2 {[%clk 0:02:45.7]} 7... e6 {[%clk 0:02:59.2]} 8. O-O {[%clk
0:02:46.2]} 8... Bd6 {[%clk 0:02:57.6]} 9. Ne5 {[%clk 0:02:45.2]} 9... Bxe2
{[%clk 0:02:56]} 10. Nxe2 {[%clk 0:02:45.5]} 10... O-O {[%clk 0:02:50.2]} 11. c3
{[%clk 0:02:45.4]} 11... Qc7 {[%clk 0:02:49.2]} 12. Nxc6 {[%clk 0:02:38]} 12...
Bxf4 {[%clk 0:02:36.2]} 13. Nxf4 {[%clk 0:02:38.9]} 13... Qxc6 {[%clk
0:02:32.8]} 14. Nd3 {[%clk 0:02:36.1]} 14... Rac8 {[%clk 0:02:19.9]} 15. Re1
{[%clk 0:02:28.6]} 15... Ne4 {[%clk 0:02:18.9]} 16. f3 {[%clk 0:02:26]} 16...
Nd6 {[%clk 0:02:18.4]} 17. Ne5 {[%clk 0:02:13.5]} 17... Qc7 {[%clk 0:02:18.5]}
18. Qd3 {[%clk 0:02:06.5]} 18... Nc4 {[%clk 0:02:16.3]} 19. Re2 {[%clk
0:02:02.2]} 19... Nxe5 {[%clk 0:02:16]} 20. Rxe5 {[%clk 0:01:56.9]} 20... Qc4
{[%clk 0:02:16.1]} 21. Qxc4 {[%clk 0:01:48.6]} 21... Rxc4 {[%clk 0:02:17]} 22.
f4 {[%clk 0:01:45.3]} 22... g6 {[%clk 0:02:14.6]} 23. g4 {[%clk 0:01:44.7]}
23... b5 {[%clk 0:02:12.6]} 24. a3 {[%clk 0:01:26]} 24... a5 {[%clk 0:02:12.6]}
25. Re3 {[%clk 0:01:20.9]} 25... b4 {[%clk 0:02:10.8]} 26. axb4 {[%clk
0:01:21.8]} 26... axb4 {[%clk 0:02:11]} 27. f5 {[%clk 0:01:22]} 27... bxc3
{[%clk 0:02:09]} 28. bxc3 {[%clk 0:01:20.2]} 28... exf5 {[%clk 0:02:02.6]} 29.
gxf5 {[%clk 0:01:21.1]} 29... gxf5 {[%clk 0:02:02.8]} 30. Kf2 {[%clk 0:01:20.8]}
30... Rfc8 {[%clk 0:02:00.3]} 31. Ra3 {[%clk 0:01:20.3]} 31... Kg7 {[%clk
0:01:53.1]} 32. Kf3 {[%clk 0:01:20.2]} 32... Kf6 {[%clk 0:01:53.1]} 33. Kf4
{[%clk 0:01:20.2]} 33... Rg8 {[%clk 0:01:48.3]} 34. Ra6+ {[%clk 0:01:16]} 34...
Kg7 {[%clk 0:01:42.4]} 35. Kxf5 {[%clk 0:01:14]} 35... Rgc8 {[%clk 0:01:40.9]}
36. Rg3+ {[%clk 0:01:09.7]} 36... Kf8 {[%clk 0:01:40.7]} 37. Ra3 {[%clk
0:01:07.3]} 37... Re8 {[%clk 0:01:33]} 38. h4 {[%clk 0:01:05.7]} 38... Re4
{[%clk 0:01:19.9]} 39. h5 {[%clk 0:01:03.3]} 39... h6 {[%clk 0:01:13]} 40. Ra8+
{[%clk 0:01:02.3]} 40... Ke7 {[%clk 0:01:12.6]} 41. Ra7+ {[%clk 0:00:44.6]}
41... Kf8 {[%clk 0:01:12.4]} 42. Ra6 {[%clk 0:00:41.3]} 42... Re1 {[%clk
0:00:53.1]} 43. Rxh6 {[%clk 0:00:41.1]} 43... Rc1 {[%clk 0:00:51.5]} 44. Kf6
{[%clk 0:00:32.1]} 44... Rc6+ {[%clk 0:00:42.1]} 45. Kg5 {[%clk 0:00:29]} 45...
R1xc3 {[%clk 0:00:36.7]} 46. Rxc6 {[%clk 0:00:20.2]} 46... Rxg3+ {[%clk
0:00:31.4]} 47. Kf5 {[%clk 0:00:18.7]} 47... Rh3 {[%clk 0:00:29.4]} 48. h6
{[%clk 0:00:18.5]} 48... Kg8 {[%clk 0:00:26.9]} 49. Ke5 {[%clk 0:00:18.6]} 49...
Rh5+ {[%clk 0:00:26.9]} 50. Kf4 {[%clk 0:00:19]} 50... Kh7 {[%clk 0:00:26.4]}
51. Rf6 {[%clk 0:00:18.7]} 51... Rxh6 {[%clk 0:00:23.4]} 52. Rxf7+ {[%clk
0:00:18.9]} 52... Kg8 {[%clk 0:00:23.6]} 53. Rd7 {[%clk 0:00:19.1]} 53... Rh5
{[%clk 0:00:22.9]} 54. Re7 {[%clk 0:00:18.5]} 54... Kf8 {[%clk 0:00:22.7]} 55.
Re5 {[%clk 0:00:18.7]} 55... Rxe5 {[%clk 0:00:21.2]} 56. Kxe5 {[%clk 0:00:18.9]}
56... Ke7 {[%clk 0:00:21.7]} 57. Kxd5 {[%clk 0:00:18.8]} 57... Kd7 {[%clk
0:00:22.2]} 58. Ke5 {[%clk 0:00:19.3]} 58... Ke7 {[%clk 0:00:22.2]} 59. Ke4
{[%clk 0:00:19.6]} 59... Kd6 {[%clk 0:00:22.4]} 60. d5 {[%clk 0:00:19.7]} 60...
Kd7 {[%clk 0:00:22.6]} 61. Kd4 {[%clk 0:00:20.6]} 61... Kd6 {[%clk 0:00:23]} 62.
Ke4 {[%clk 0:00:20.1]} 62... Kd7 {[%clk 0:00:23.4]} 63. Ke5 {[%clk 0:00:21]}
63... Ke7 {[%clk 0:00:23.7]} 64. d6+ {[%clk 0:00:21.9]} 64... Kd7 {[%clk
0:00:24.1]} 65. Kd5 {[%clk 0:00:22.8]} 65... Kd8 {[%clk 0:00:24.5]} 66. Ke6
{[%clk 0:00:23.7]} 66... Ke8 {[%clk 0:00:24.8]} 67. d7+ {[%clk 0:00:24.4]} 67...
Kd8 {[%clk 0:00:25.3]} 68. Kd6 {[%clk 0:00:25.3]} 1/2-1/2

[Event "Late-Titled-Tuesday-Blitz-June-04-2024"]
[Site "Chess.com"]
[Date "2024.06.04"]
[Round "2"]
[White "MiguelBestard1981"]
[Black "isla88"]
[Result "1-0"]
[WhiteElo "2209"]
[BlackElo "2450"]
[TimeControl "180+1"]
[EndTime "14:18:14 PDT"]
[Termination "MiguelBestard1981 won on time"]

1. d4 {[%clk 0:03:00.9]} 1... Nf6 {[%clk 0:02:59.6]} 2. Bf4 {[%clk 0:02:59.8]}
2... c5 {[%clk 0:02:58.8]} 3. e3 {[%clk 0:02:59.2]} 3... d5 {[%clk 0:02:59]} 4.
c3 {[%clk 0:02:59.2]} 4... Nc6 {[%clk 0:02:58.8]} 5. Nd2 {[%clk 0:02:59.1]} 5...
e6 {[%clk 0:02:51.9]} 6. Bd3 {[%clk 0:02:57.6]} 6... Bd6 {[%clk 0:02:51.9]} 7.
Bxd6 {[%clk 0:02:57.5]} 7... Qxd6 {[%clk 0:02:51.4]} 8. f4 {[%clk 0:02:58.4]}
8... cxd4 {[%clk 0:02:49]} 9. cxd4 {[%clk 0:02:59.3]} 9... b6 {[%clk 0:02:44.4]}
10. a3 {[%clk 0:02:58.4]} 10... Ne7 {[%clk 0:02:36.2]} 11. Ngf3 {[%clk 0:02:49]}
11... Ng6 {[%clk 0:02:35.1]} 12. Ne5 {[%clk 0:02:47.8]} 12... O-O {[%clk
0:02:33.5]} 13. h4 {[%clk 0:02:42.9]} 13... Nd7 {[%clk 0:02:22.3]} 14. h5 {[%clk
0:02:41.1]} 14... Ngxe5 {[%clk 0:02:21.6]} 15. fxe5 {[%clk 0:02:39.3]} 15... Qe7
{[%clk 0:02:20.5]} 16. h6 {[%clk 0:02:34.9]} 16... g6 {[%clk 0:02:15.7]} 17. Qg4
{[%clk 0:02:25.8]} 17... f5 {[%clk 0:02:01.7]} 18. Qh4 {[%clk 0:02:21.4]} 18...
Qxh4+ {[%clk 0:01:57.8]} 19. Rxh4 {[%clk 0:02:22.3]} 19... Kf7 {[%clk
0:01:57.4]} 20. Nf3 {[%clk 0:02:21]} 20... Re8 {[%clk 0:01:33.5]} 21. Ng5+
{[%clk 0:02:19.8]} 21... Kg8 {[%clk 0:01:34.1]} 22. Bb5 {[%clk 0:02:16.4]} 22...
Re7 {[%clk 0:01:33.5]} 23. Bxd7 {[%clk 0:02:09.3]} 23... Bxd7 {[%clk 0:01:30.2]}
24. Rc1 {[%clk 0:02:09.6]} 24... Rc8 {[%clk 0:01:25.3]} 25. Rxc8+ {[%clk
0:02:08.1]} 25... Bxc8 {[%clk 0:01:26.2]} 26. Kd2 {[%clk 0:02:07.7]} 26... Bd7
{[%clk 0:01:25.1]} 27. Rh1 {[%clk 0:02:07]} 27... Bc6 {[%clk 0:01:06.6]} 28. Rc1
{[%clk 0:02:06]} 28... Bb7 {[%clk 0:01:06.9]} 29. Rc3 {[%clk 0:01:48]} 29... Kf8
{[%clk 0:01:07.1]} 30. g3 {[%clk 0:01:42.3]} 30... Ke8 {[%clk 0:01:06.7]} 31.
Kc2 {[%clk 0:01:40.6]} 31... Kd7 {[%clk 0:01:01.5]} 32. Kb3 {[%clk 0:01:39.4]}
32... Bc6 {[%clk 0:01:01.5]} 33. Kb4 {[%clk 0:01:38.3]} 33... a5+ {[%clk
0:01:01.2]} 34. Kb3 {[%clk 0:01:36]} 34... Kc7 {[%clk 0:01:01.3]} 35. Kc2 {[%clk
0:01:32]} 35... Kb7 {[%clk 0:01:01]} 36. b4 {[%clk 0:01:31.8]} 36... Ba4+ {[%clk
0:00:52.9]} 37. Kb2 {[%clk 0:01:27]} 37... axb4 {[%clk 0:00:51.6]} 38. axb4
{[%clk 0:01:27]} 38... Bb5 {[%clk 0:00:52.1]} 39. Kb3 {[%clk 0:01:24]} 39...
Bc4+ {[%clk 0:00:51.5]} 40. Rxc4 {[%clk 0:01:19.8]} 40... dxc4+ {[%clk
0:00:50.8]} 41. Kxc4 {[%clk 0:01:19.8]} 41... Rc7+ {[%clk 0:00:47]} 42. Kd3
{[%clk 0:01:18.4]} 42... Rc1 {[%clk 0:00:39.8]} 43. Nxe6 {[%clk 0:01:15]} 43...
Rh1 {[%clk 0:00:38.8]} 44. Ng5 {[%clk 0:01:07.5]} 44... Kc6 {[%clk 0:00:34.5]}
45. e6 {[%clk 0:01:04.7]} 45... Kd6 {[%clk 0:00:33.4]} 46. d5 {[%clk 0:01:04.4]}
46... Rh5 {[%clk 0:00:17.1]} 47. Nf7+ {[%clk 0:00:59.8]} 47... Ke7 {[%clk
0:00:13.9]} 48. Kd4 {[%clk 0:00:59]} 48... Kf6 {[%clk 0:00:11]} 49. Kc4 {[%clk
0:00:54.8]} 49... g5 {[%clk 0:00:05.4]} 50. Kb5 {[%clk 0:00:54.2]} 50... f4
{[%clk 0:00:06]} 51. Kc6 {[%clk 0:00:41.1]} 51... fxe3 {[%clk 0:00:03.1]} 52. d6
{[%clk 0:00:41.4]} 52... e2 {[%clk 0:00:01.9]} 53. d7 {[%clk 0:00:41.6]} 53...
e1=Q {[%clk 0:00:02.8]} 54. d8=Q+ {[%clk 0:00:41.1]} 54... Kf5 {[%clk
0:00:03.3]} 55. Qd5+ {[%clk 0:00:35.3]} 55... Kg4 {[%clk 0:00:03.1]} 56. Ne5+
{[%clk 0:00:31.3]} 56... Kh3 {[%clk 0:00:03.5]} 57. e7 {[%clk 0:00:26.8]} 57...
Rxh6+ {[%clk 0:00:02.2]} 58. Kd7 {[%clk 0:00:26.6]} 58... Qxb4 {[%clk
0:00:01.4]} 59. e8=Q {[%clk 0:00:22.2]} 59... Qa4+ {[%clk 0:00:02.1]} 60. Kd8
{[%clk 0:00:20.9]} 60... Qa7 {[%clk 0:00:01.4]} 61. Qed7+ {[%clk 0:00:20.4]} 1-0